bitfinex/quotes_SOLUSD_20241008
["timestamp","ask_amount","ask_price","bid_price","bid_amount"]
[1728409557100,0.12549,142.76,142.74,24.5192]
[1728409557689,0.12549,142.76,142.74,17.5136]
[1728409558200,0.65462441,142.76,142.73,20.1692407]
[1728409559181,0.65462441,142.76,142.73,7.006]
[1728409559398,0.65462441,142.76,142.73,20.1692407]
[1728409562078,0.65462441,142.77,142.73,30.6781407]
[1728409562497,0.12549,142.75,142.73,17.5149]
[1728409562695,0.65462441,142.75,142.73,17.5149]
[1728409562903,0.65462441,142.75,142.73,24.5211]
[1728409563080,7.0044,142.77,142.73,24.5211]
[1728409563081,0.65462441,142.76,142.73,24.5211]
[1728409563886,7.65932441,142.76,142.73,17.5149]
[1728409564304,0.65462441,142.76,142.73,17.5149]
[1728409564492,7.65902441,142.77,142.73,24.5211]
[1728409565202,0.65462441,142.77,142.74,7.0056]
[1728409565405,7.65932441,142.77,142.73,37.6842407]
[1728409565681,7.13099,142.75,142.71,7.007]
[1728409565898,7.13169,142.73,142.7,17.5182]
[1728409566140,0.12549,142.71,142.68,7.0085]
[1728409566286,0.12549,142.69,142.67,17.5218]
[1728409566488,0.52913441,142.7,142.68,7.0086]
[1728409566704,0.12549,142.7,142.69,7.0081]
[1728409567897,0.12549,142.71,142.69,7.0081]
[1728409568909,0.52913441,142.72,142.69,7.0081]
[1728409569294,0.12549,142.71,142.69,7.0081]
[1728409569493,0.12549,142.71,142.68,13.1632407]
[1728409569701,0.12549,142.71,142.68,20.1717407]
[1728409573386,0.12549,142.71,142.67,17.5218]
[1728409573591,7.13399,142.69,142.65,7.0099]
[1728409573796,0.52913441,142.68,142.64,30.6887407]
[1728409574002,0.12549,142.67,142.64,30.6887407]
[1728409574209,7.13469,142.67,142.64,30.6887407]
[1728409574408,0.52913441,142.66,142.64,30.6887407]
[1728409574812,0.52913441,142.71,142.65,1.4020174]
[1728409575016,0.12549,142.69,142.66,20.1725407]
[1728409575310,0.65462441,142.69,142.66,20.1725407]
[1728409575509,0.12549,142.69,142.66,13.1632407]
[1728409575700,0.12549,142.69,142.67,7.009]
[1728409576206,0.12549,142.69,142.66,30.6870407]
[1728409576507,0.12549,142.69,142.67,7.0088]
[1728409576692,0.65462441,142.7,142.67,7.0088]
[1728409577706,16.45003441,142.74,142.71,7.007]
[1728409578014,7.0062,142.73,142.7,30.6820407]
[1728409578191,0.52913441,142.72,142.7,30.6820407]
[1728409578390,0.52913441,142.73,142.7,37.6895407]
[1728409579413,0.12549,142.73,142.71,7.0071]
[1728409579709,16.57552441,142.74,142.72,37.6863407]
[1728409579710,0.52913441,142.74,142.72,37.6863407]
[1728409579894,0.52913441,142.74,142.67,35.0443]
[1728409579895,7.53443441,142.75,142.71,7.0071]
[1728409580100,0.52913441,142.75,142.69,30.6829407]
[1728409580286,7.0063,142.73,142.69,37.6909407]
[1728409580491,0.52913441,142.72,142.69,37.6909407]
[1728409581424,7.13179,142.73,142.69,37.6909407]
[1728409581713,0.12549,142.72,142.71,7.0072]
[1728409581906,0.52913441,142.76,142.71,7.0072]
[1728409581907,0.52913441,142.74,142.71,20.1704407]
[1728409582115,0.12549,142.73,142.71,20.1704407]
[1728409583003,0.12549,142.74,142.71,20.1704407]
[1728409583311,0.65462441,142.74,142.71,20.1704407]
[1728409583519,7.0051,142.76,142.72,7.0066]
[1728409583706,7.53443441,142.75,142.71,37.6879407]
[1728409584008,7.0049,142.76,142.72,7.0066]
[1728409584217,0.52913441,142.77,142.74,7.0057]
[1728409584508,7.53363441,142.77,142.73,30.6785407]
[1728409584706,7.53363441,142.77,142.73,37.6846407]
[1728409585007,0.12549,142.76,142.73,30.6785407]
[1728409585226,0.12549,142.76,142.74,7.0057]
[1728409585889,0.12549,142.76,142.73,37.6845407]
[1728409586208,0.12549,142.76,142.74,7.0056]
[1728409586406,0.12549,142.77,142.74,1.40102062]
[1728409586594,0.12549,142.77,142.76,7.0047]
[1728409586799,0.12549,142.77,142.75,37.6806407]
[1728409589994,0.12549,142.78,142.76,7.0047]
[1728409590307,23.32511551,142.82,142.76,7.0047]
[1728409590308,7.53163441,142.81,142.77,7.0042]
[1728409590697,7.53163441,142.81,142.77,20.1674407]
[1728409590895,7.53163441,142.81,142.78,7.0036]
[1728409590896,0.52913441,142.81,142.78,7.0036]
[1728409591818,7.53143441,142.81,142.77,37.6775407]
[1728409592531,0.12549,142.8,142.76,7.0046]
[1728409592699,7.12839,142.8,142.76,7.0046]
[1728409593029,0.12549,142.8,142.77,20.1673407]
[1728409594018,0.12549,142.8,142.77,21.56799254]
[1728409594412,0.12549,142.8,142.78,7.0036]
[1728409595308,0.65462441,142.81,142.78,7.0036]
[1728409595495,7.65692441,142.81,142.77,20.1673407]
[1728409595697,7.65692441,142.81,142.76,17.5118]
[1728409595698,7.0033,142.79,142.76,24.5165]
[1728409596314,7.0029,142.8,142.76,24.5165]
[1728409596507,0.52913441,142.79,142.76,24.5165]
[1728409597218,7.0029,142.8,142.76,24.5165]
[1728409597428,0.12549,142.79,142.76,24.5165]
[1728409597725,0.12549,142.79,142.77,20.1674407]
[1728409597931,0.12549,142.8,142.77,20.1674407]
[1728409598116,7.12829,142.8,142.77,20.1674407]
[1728409598421,0.52913441,142.79,142.77,13.1632407]
[1728409598639,7.53243441,142.79,142.76,17.5118]
[1728409599125,7.53243441,142.79,142.76,24.5165]
[1728409599312,0.52913441,142.79,142.76,24.5165]
[1728409599519,7.65762441,142.8,142.76,24.5165]
[1728409603241,7.0035,142.79,142.75,7.005]
[1728409603419,7.65862441,142.78,142.74,7.0055]
[1728409603620,0.52913441,142.77,142.74,7.0055]
[1728409603936,0.12549,142.76,142.74,7.0055]
[1728409604141,7.0034,142.79,142.75,7.0052]
[1728409604327,0.65462441,142.78,142.75,7.0052]
[1728409611540,0.65462441,142.78,142.71,17.5179]
[1728409611751,0.12549,142.74,142.71,30.6811407]
[1728409611954,7.66042441,142.74,142.71,30.6811407]
[1728409612252,0.65462441,142.74,142.72,7.0066]
[1728409612549,0.12549,142.74,142.72,7.0066]
[1728409616428,0.12549,142.74,142.71,30.6811407]
[1728409617349,0.12549,142.74,142.71,37.6882407]
[1728409618150,7.13139,142.74,142.71,30.6811407]
[1728409618356,15.9549,142.77,142.68,17.5209]
[1728409618357,0.12549,142.72,142.68,17.5209]
[1728409618685,0.12549,142.72,142.66,18.0923]
[1728409618686,0.12549,142.69,142.66,13.1632407]
[1728409618864,0.12549,142.69,142.66,20.1725407]
[1728409619856,7.66282441,142.69,142.65,37.6977407]
[1728409620357,0.65462441,142.69,142.62,23.7977]
[1728409620646,0.65462441,142.69,142.63,7.011]
[1728409620647,0.12549,142.66,142.63,7.011]
[1728409620833,0.65462441,142.66,142.63,7.011]
[1728409621552,0.65462441,142.66,142.63,20.1742407]
[1728409622451,0.12549,142.66,142.64,7.0105]
[1728409622652,0.52913441,142.7,142.64,7.0105]
[1728409622653,0.52913441,142.7,142.65,14.56522467]
[1728409622833,0.52913441,142.7,142.68,7.0086]
[1728409623032,22.6359,142.72,142.68,7.0086]
[1728409623033,0.52913441,142.71,142.68,7.0086]
[1728409623543,7.0088,142.68,142.64,20.1736407]
[1728409623754,0.52913441,142.67,142.64,20.1736407]
[1728409624554,0.12549,142.66,142.64,20.1736407]
[1728409624743,0.65462441,142.66,142.63,17.527]
[1728409624930,0.12549,142.66,142.63,30.6902407]
[1728409625131,0.12549,142.66,142.64,20.1737407]
[1728409625354,0.65462441,142.67,142.64,20.1737407]
[1728409626552,0.12549,142.68,142.65,20.1730407]
[1728409626854,7.0077,142.7,142.66,8.41148274]
[1728409627167,7.53643441,142.71,142.67,7.0091]
[1728409627463,7.0077,142.7,142.66,20.1727407]
[1728409627645,0.52913441,142.69,142.66,20.1727407]
[1728409628226,0.52913441,142.71,142.69,7.0078]
[1728409628939,0.52913441,142.71,142.68,7.0086]
[1728409629661,15.6291,142.72,142.69,7.008]
[1728409629959,0.52913441,142.73,142.7,7.0076]
[1728409630164,0.52913441,142.73,142.67,17.5224]
[1728409630365,7.0082,142.69,142.65,7.01]
[1728409631033,7.13489,142.67,142.63,7.0109]
[1728409631443,0.12549,142.65,142.62,7.0115]
[1728409633967,0.65462441,142.65,142.62,7.0115]
[1728409635947,0.12549,142.66,142.63,7.0111]
[1728409636352,0.65462441,142.66,142.63,7.0111]
[1728409637857,0.52913441,142.69,142.66,7.0095]
[1728409638064,7.0093,142.67,142.63,24.538]
[1728409638365,0.52913441,142.69,142.65,7.01]
[1728409638781,7.53743441,142.69,142.65,7.01]
[1728409639063,15.9665,142.7,142.67,7.009]
[1728409639266,7.53593441,142.72,142.68,7.0084]
[1728409639439,7.0068,142.72,142.68,7.0084]
[1728409639863,0.52913441,142.73,142.68,7.0084]
[1728409640045,0.52913441,142.73,142.69,7.0078]
[1728409641265,16.326,142.74,142.71,7.0068]
[1728409641577,0.52913441,142.75,142.72,7.0066]
[1728409642262,0.52913441,142.76,142.72,7.0066]
[1728409642470,7.53343441,142.77,142.72,7.0066]
[1728409643946,0.12549,142.76,142.72,7.0066]
[1728409644143,0.12549,142.76,142.73,7.0058]
[1728409644546,0.12549,142.75,142.72,7.0066]
[1728409645053,0.12549,142.75,142.72,8.40772391]
[1728409645659,7.53343441,142.77,142.73,7.0062]
[1728409645966,0.12549,142.76,142.73,7.0062]
[1728409647864,0.65462441,142.76,142.71,24.5246]
[1728409648071,7.0054,142.75,142.71,24.5246]
[1728409650077,7.66042441,142.74,142.71,17.5176]
[1728409650255,7.66042441,142.74,142.7,7.0075]
[1728409650256,7.0058,142.74,142.7,7.0075]
[1728409652282,7.13199,142.73,142.68,24.5291]
[1728409652454,7.53613441,142.72,142.68,24.5293]
[1728409652657,7.007,142.72,142.68,24.5293]
[1728409655069,0.12549,142.73,142.69,7.0081]
[1728409655261,0.12549,142.74,142.71,7.0071]
[1728409655862,7.13129,142.74,142.7,25.92793443]
[1728409656269,7.13129,142.74,142.7,24.5265]
[1728409656681,7.53403441,142.76,142.72,7.0066]
[1728409656976,7.0053,142.75,142.71,7.0068]
[1728409657282,7.0053,142.75,142.71,8.40807455]
[1728409657956,0.12549,142.74,142.71,7.0068]
[1728409658576,0.12549,142.74,142.71,20.21782591]
[1728409661570,0.12549,142.73,142.69,13.21102591]
[1728409661757,7.007,142.72,142.69,13.21102591]
[1728409661959,0.12549,142.7,142.64,30.73682591]
[1728409662180,0.12549,142.68,142.65,7.0099]
[1728409662488,0.12549,142.7,142.64,17.5258]
[1728409662663,0.12549,142.68,142.65,7.0101]
[1728409662863,0.12549,142.7,142.65,7.0101]
[1728409663181,0.12549,142.68,142.65,7.0101]
[1728409667897,0.65462441,142.68,142.64,17.5258]
[1728409668071,17.5184,142.71,142.62,7.0115]
[1728409668072,7.0099,142.66,142.62,7.0115]
[1728409668490,0.12549,142.65,142.62,7.0115]
[1728409669603,0.52913441,142.68,142.62,7.0115]
[1728409669604,0.52913441,142.68,142.66,7.0096]
[1728409669779,7.008,142.7,142.65,17.5252]
[1728409669780,7.66282441,142.69,142.65,24.5351]
[1728409670169,0.65462441,142.69,142.65,17.5252]
[1728409670390,0.12549,142.67,142.65,17.5252]
[1728409670706,7.53743441,142.69,142.65,25.93718324]
[1728409670994,0.12549,142.68,142.65,24.5353]
[1728409673797,7.66332441,142.68,142.65,17.5252]
[1728409674184,7.13419,142.68,142.65,17.5252]
[1728409674679,0.12549,142.68,142.65,18.92702184]
[1728409674881,0.12549,142.68,142.65,24.5352]
[1728409676598,0.12549,142.68,142.66,1.40182128]
[1728409676782,0.12549,142.69,142.66,8.41112128]
[1728409678805,7.13369,142.69,142.66,8.41112128]
[1728409679712,7.13369,142.69,142.66,1.40182128]
[1728409680304,0.12549,142.69,142.66,1.40182128]
[1728409680610,7.13379,142.69,142.65,24.5352]
[1728409682500,7.13379,142.69,142.66,13.22000094]
[1728409682700,15.347,142.72,142.67,18.92428411]
[1728409682900,22.354,142.72,142.68,20.22860094]
[1728409683210,22.354,142.72,142.69,1.40149244]
[1728409683709,22.354,142.72,142.68,21.6300934]
[1728409683882,0.12549,142.71,142.68,21.6300934]
[1728409685718,7.13279,142.71,142.68,13.22000094]
[1728409688014,7.13279,142.71,142.68,14.62152709]
[1728409688386,7.13279,142.71,142.68,13.22000094]
[1728409690587,0.12549,142.69,142.64,17.5254]
[1728409690894,0.12549,142.69,142.66,20.22940094]
[1728409691091,0.12549,142.69,142.66,13.22000094]
[1728409691092,7.13369,142.69,142.66,13.22000094]
[1728409691702,7.0092,142.67,142.64,30.74540094]
[1728409692517,0.52913441,142.68,142.64,13.22000094]
[1728409692686,7.0097,142.66,142.64,13.22000094]
[1728409692886,0.65462441,142.69,142.64,13.22000094]
[1728409693089,7.0093,142.67,142.64,13.22000094]
[1728409693306,7.53883441,142.66,142.62,20.23140094]
[1728409693515,7.0097,142.66,142.63,1.40203682]
[1728409693818,7.0097,142.66,142.62,20.23140094]
[1728409695012,7.0097,142.66,142.63,1.40203594]
[1728409695400,7.0097,142.66,142.62,20.23140094]
[1728409696321,7.0097,142.66,142.63,1.40203501]
[1728409696510,7.0097,142.66,142.62,20.23140094]
[1728409696713,0.65462441,142.67,142.62,13.22000094]
[1728409696911,7.0103,142.65,142.62,13.22000094]
[1728409699121,7.53893441,142.66,142.62,20.23150094]
[1728409699619,0.12549,142.65,142.62,20.23150094]
[1728409708512,7.13559,142.65,142.62,20.23150094]
[1728409713614,7.13559,142.65,142.62,21.63357227]
[1728409713820,0.12549,142.65,142.62,21.63357227]
[1728409714131,7.0098,142.66,142.63,7.011]
[1728409714634,22.5495,142.67,142.63,20.23100094]
[1728409714929,22.5495,142.67,142.64,1.40193028]
[1728409715305,22.5495,142.67,142.63,20.23100094]
[1728409715502,22.5495,142.67,142.64,1.40192275]
[1728409716127,0.65462441,142.68,142.64,1.40192275]
[1728409716128,0.52913441,142.68,142.64,1.40192275]
[1728409716337,7.30597286,142.7,142.67,13.22000094]
[1728409716534,22.733,142.72,142.68,7.0082]
[1728409718024,7.66182441,142.71,142.67,37.75110094]
[1728409719625,0.65462441,142.71,142.67,30.74220094]
[1728409719930,0.65462441,142.71,142.66,13.22000094]
[1728409719931,7.0082,142.69,142.66,13.22000094]
[1728409720516,0.65462441,142.71,142.66,13.22000094]
[1728409720734,7.0078,142.7,142.66,20.22950094]
[1728409722420,7.0078,142.7,142.66,37.75350094]
[1728409724225,7.0078,142.7,142.67,7.0091]
[1728409726132,7.0078,142.7,142.66,30.74400094]
[1728409726331,7.0078,142.7,142.66,37.75340094]
[1728409727831,7.53663441,142.71,142.67,7.0091]
[1728409728033,7.0077,142.7,142.67,7.0091]
[1728409728236,7.53663441,142.71,142.67,7.0091]
[1728409728549,7.0077,142.7,142.66,30.74400094]
[1728409728834,7.0077,142.7,142.66,37.75360094]
[1728409730932,0.65462441,142.71,142.66,24.5336]
[1728409731115,7.0085,142.69,142.66,17.524]
[1728409732716,0.12549,142.68,142.65,20.23000094]
[1728409734034,0.12549,142.68,142.66,1.40175922]
[1728409735245,7.0078,142.7,142.67,14.62176381]
[1728409735826,7.0078,142.7,142.67,13.22000094]
[1728409740047,7.0078,142.7,142.66,7.0096]
[1728409740544,7.0082,142.69,142.66,7.0096]
[1728409741048,0.12549,142.68,142.62,17.528]
[1728409741239,0.12549,142.68,142.63,14.6218533]
[1728409741435,0.12549,142.68,142.64,7.0103]
[1728409741640,0.12549,142.68,142.65,1.40184236]
[1728409742137,7.13429,142.68,142.65,1.40184236]
[1728409743353,7.10403,142.68,142.65,1.40184236]
[1728409744736,0.52913441,142.69,142.65,1.40184236]
[1728409744737,7.0083,142.69,142.65,21.6315433]
[1728409745148,15.726,142.72,142.66,7.0095]
[1728409745336,7.0073,142.71,142.68,7.0086]
[1728409745539,0.52913441,142.71,142.67,13.22000094]
[1728409745860,7.0082,142.69,142.66,24.5335]
[1728409746233,7.0082,142.69,142.66,17.524]
[1728409746541,7.0082,142.69,142.65,20.22980094]
[1728409746845,7.13319,142.7,142.66,8.41130369]
[1728409747254,7.0086,142.68,142.65,17.5253]
[1728409747758,7.0082,142.69,142.65,24.5353]
[1728409747947,7.13339,142.7,142.66,21.63134254]
[1728409748860,7.13339,142.7,142.66,20.22960094]
[1728409752774,7.13339,142.7,142.66,13.22000094]
[1728409753062,7.13339,142.7,142.67,8.41076396]
[1728409753464,0.12549,142.71,142.68,7.0086]
[1728409753645,22.7328,142.72,142.69,1.40147112]
[1728409753840,22.7328,142.72,142.68,20.22840094]
[1728409756358,22.7328,142.72,142.68,21.62985144]
[1728409756562,0.12549,142.74,142.69,30.74010094]
[1728409756875,15.0717,142.75,142.72,13.22000094]
[1728409757036,0.52913441,142.76,142.73,1.40108146]
[1728409757037,7.005,142.76,142.73,1.40108146]
[1728409758377,0.52913441,142.75,142.7,13.22000094]
[1728409758555,7.0061,142.74,142.7,20.22750094]
[1728409759167,7.0054,142.75,142.71,7.0072]
[1728409760449,7.0054,142.75,142.7,30.73910094]
[1728409760653,7.13029,142.76,142.72,39.14423707]
[1728409760852,7.13029,142.76,142.73,1.40099375]
[1728409761059,7.0048,142.76,142.73,1.40099375]
[1728409761444,7.0048,142.76,142.72,37.74310094]
[1728409761949,7.82332731,142.78,142.72,30.73660094]
[1728409762151,7.0043,142.77,142.73,8.4069608]
[1728409762750,7.0043,142.77,142.73,7.006]
[1728409763466,14.2982929,142.78,142.74,7.0054]
[1728409764054,7.2941929,142.78,142.75,7.0052]
[1728409764553,7.2941929,142.78,142.72,13.22000094]
[1728409764759,7.13009,142.77,142.73,7.0061]
[1728409765653,0.12549,142.77,142.72,13.22000094]
[1728409765976,7.0061,142.74,142.7,7.0075]
[1728409766278,0.65462441,142.77,142.68,17.5206]
[1728409766279,7.0068,142.72,142.68,24.5291]
[1728409766773,7.0064,142.73,142.69,7.0081]
[1728409768579,7.0064,142.73,142.69,20.22810094]
[1728409769865,7.13099,142.75,142.71,20.22710094]
[1728409770172,7.13099,142.75,142.72,1.40111042]
[1728409770371,0.52913441,142.77,142.73,1.4011119]
[1728409770552,0.12549,142.76,142.73,21.62721284]
[1728409770878,7.0048,142.76,142.73,13.22000094]
[1728409771084,7.0048,142.76,142.73,14.62098714]
[1728409771984,7.0043,142.77,142.73,20.22580094]
[1728409773653,7.0075,142.71,142.67,7.009]
[1728409773854,7.0077,142.7,142.66,17.5231]
[1728409774468,0.12549,142.72,142.66,17.5231]
[1728409774676,7.0073,142.71,142.66,24.5323]
[1728409775686,7.0069,142.72,142.68,7.0086]
[1728409777086,7.0072,142.71,142.67,20.22900094]
[1728409779583,7.0072,142.71,142.67,20.22900094]
[1728409782175,7.0077,142.7,142.67,20.22900094]
[1728409782384,7.0077,142.7,142.67,13.22000094]
[1728409783276,7.0077,142.7,142.67,20.22910094]
[1728409783674,7.0077,142.7,142.67,13.22000094]
[1728409784275,0.12549,142.73,142.68,1.40148279]
[1728409784473,7.0069,142.72,142.68,25.93178279]
[1728409784681,0.12549,142.73,142.68,25.93178279]
[1728409784682,7.0063,142.73,142.69,13.22000094]
[1728409784881,7.006,142.74,142.71,7.0071]
[1728409785088,7.0055,142.75,142.72,1.40114348]
[1728409785684,7.0057,142.74,142.72,1.40114348]
[1728409785885,41.43712366,142.77,142.6,15.8842]
[1728409785886,24.8448757,142.73,142.6,15.8842]
[1728409786070,7.0096,142.66,142.62,13.22000094]
[1728409786271,7.0093,142.67,142.62,13.22000094]
[1728409786574,7.0099,142.66,142.62,13.22000094]
[1728409786990,7.0099,142.66,142.62,20.23140094]
[1728409787486,7.0093,142.67,142.63,7.011]
[1728409788072,7.0093,142.67,142.62,20.23140094]
[1728409788390,0.12549,142.69,142.62,7.0114]
[1728409788690,0.12549,142.69,142.61,17.5293]
[1728409788691,7.0106,142.65,142.61,17.5293]
[1728409790192,7.0106,142.65,142.61,24.5413]
[1728409790596,17.64639,142.69,142.62,23.776884]
[1728409790770,7.0097,142.66,142.62,30.788284]
[1728409791266,7.0097,142.66,142.62,7.0114]
[1728409791467,7.0097,142.66,142.61,17.5293]
[1728409791468,7.0097,142.66,142.61,24.5412]
[1728409791769,0.12549,142.67,142.61,24.5412]
[1728409792090,7.0102,142.65,142.61,24.5412]
[1728409798074,7.0102,142.65,142.62,1.40195863]
[1728409798396,7.0102,142.65,142.62,8.41355863]
[1728409798901,19.39880287,142.69,142.63,7.011]
[1728409799082,7.0095,142.67,142.63,7.011]
[1728409801311,7.0095,142.67,142.64,1.40180075]
[1728409801499,7.0095,142.67,142.63,7.011]
[1728409801887,7.0095,142.67,142.61,17.5293]
[1728409801888,0.12549,142.69,142.6,20.66612448]
[1728409802092,14.30900009,142.7,142.66,7.0093]
[1728409802277,7.0077,142.7,142.67,1.4015291]
[1728409802599,7.0077,142.7,142.66,7.0093]
[1728409803918,0.12549,142.71,142.64,23.776884]
[1728409804207,0.12549,142.71,142.62,38.19412448]
[1728409804208,7.0096,142.66,142.62,38.19412448]
[1728409804384,7.0096,142.66,142.62,24.5394]
[1728409805395,7.0096,142.66,142.63,7.011]
[1728409805595,7.0096,142.66,142.62,17.528]
[1728409805596,7.0087,142.68,142.64,25.93862007]
[1728409805784,7.0077,142.7,142.67,7.0091]
[1728409806108,7.0077,142.7,142.66,24.5324]
[1728409807110,7.30258879,142.72,142.66,17.5229]
[1728409807286,16.5479,142.73,142.68,7.0084]
[1728409807491,7.0078,142.7,142.66,45.19842448]
[1728409807722,7.0073,142.71,142.67,7.0087]
[1728409807917,7.0078,142.7,142.66,45.19832448]
[1728409808585,7.0078,142.7,142.66,24.5322]
[1728409808788,16.5479,142.73,142.66,17.5229]
[1728409808789,18.29978791,142.73,142.66,17.5229]
[1728409809010,7.0075,142.71,142.67,7.0091]
[1728409810523,7.008,142.7,142.66,24.5325]
[1728409811021,0.12549,142.72,142.66,17.5229]
[1728409811022,7.0084,142.69,142.66,17.5229]
[1728409815116,0.12549,142.72,142.66,24.5325]
[1728409815298,7.0078,142.7,142.66,24.5325]
[1728409818092,7.0082,142.69,142.66,24.5325]
[1728409818323,7.0082,142.69,142.65,7.0099]
[1728409819205,1.75193626,142.71,142.65,7.0099]
[1728409819611,7.0083,142.69,142.65,7.0099]
[1728409820625,7.0083,142.69,142.65,20.23110845]
[1728409821100,7.0083,142.69,142.65,37.75640845]
[1728409821914,7.0083,142.69,142.65,30.74650845]
[1728409822218,7.0083,142.69,142.66,7.0096]
[1728409823423,0.12549,142.7,142.62,17.5279]
[1728409823600,24.15089,142.7,142.63,13.22120845]
[1728409823800,0.12549,142.68,142.63,13.22120845]
[1728409824008,7.0099,142.66,142.63,13.22120845]
[1728409824205,7.0103,142.65,142.63,13.22120845]
[1728409824399,7.0103,142.65,142.62,17.5279]
[1728409824601,17.44771479,142.68,142.6,7.0125]
[1728409824602,7.0108,142.64,142.6,7.0125]
[1728409827211,7.0099,142.66,142.62,7.0114]
[1728409827507,7.0099,142.66,142.63,1.40193832]
[1728409828115,7.0099,142.66,142.62,7.0114]
[1728409828312,34.96941479,142.68,142.61,17.5302]
[1728409828635,34.96941479,142.68,142.61,24.5421]
[1728409828918,7.0103,142.65,142.61,24.5421]
[1728409830525,7.0099,142.66,142.63,7.011]
[1728409830824,7.0099,142.66,142.64,1.40190026]
[1728409831528,17.44771479,142.68,142.61,17.5302]
[1728409831698,17.44771479,142.68,142.63,7.0108]
[1728409831699,7.0093,142.67,142.63,7.0108]
[1728409831909,7.0093,142.67,142.64,1.40191515]
[1728409833321,17.44771479,142.68,142.63,7.0108]
[1728409833631,7.0097,142.66,142.62,27.68279835]
[1728409834732,7.0097,142.66,142.63,1.40191709]
[1728409835511,7.0095,142.67,142.63,7.0108]
[1728409836811,7.0097,142.66,142.63,7.0108]
[1728409837728,7.0097,142.66,142.62,7.0114]
[1728409838026,7.0106,142.64,142.61,17.5302]
[1728409839025,7.0104,142.65,142.61,24.5422]
[1728409841132,7.0107,142.64,142.61,17.5302]
[1728409843125,7.0107,142.64,142.61,24.5423]
[1728409844536,7.0107,142.64,142.61,37.77160758]
[1728409845136,7.0116,142.63,142.61,13.22930758]
[1728409845342,1.87814859,142.66,142.59,37.00619158]
[1728409845634,1.87814859,142.66,142.58,30.76220758]
[1728409845938,7.0116,142.62,142.59,7.0129]
[1728409846633,7.0116,142.62,142.58,17.5329]
[1728409846818,7.0116,142.62,142.58,37.77560758]
[1728409847229,1.87839976,142.64,142.58,37.77560758]
[1728409847434,7.0113,142.63,142.59,13.22930758]
[1728409847618,7.0113,142.63,142.59,20.24210758]
[1728409851933,7.0107,142.64,142.61,13.22930758]
[1728409852123,6.3196,142.65,142.62,1.40212606]
[1728409852124,13.3298,142.65,142.62,1.40212606]
[1728409852325,13.3298,142.65,142.61,20.24130758]
[1728409853135,6.3196,142.65,142.61,20.24130758]
[1728409853344,7.0106,142.64,142.61,20.24130758]
[1728409853642,7.0106,142.64,142.61,13.22930758]
[1728409854436,1.75268113,142.64,142.6,17.5311]
[1728409854642,7.0112,142.63,142.6,17.5311]
[1728409855444,7.0112,142.63,142.59,20.24220758]
[1728409855848,7.0125,142.61,142.57,25.3918887]
[1728409856142,0.12549,142.61,142.57,31.60719628]
[1728409856374,7.13909,142.58,142.57,0.8437887]
[1728409857544,42.17809,142.58,142.57,0.8437887]
[1728409861546,65.954974,142.58,142.57,0.8437887]
[1728409862452,42.17809,142.58,142.57,0.8437887]
[1728409864069,67.70889321,142.58,142.57,0.8437887]
[1728409864769,43.93200921,142.58,142.57,0.8437887]
[1728409865540,22.0526,142.58,142.57,0.8437887]
[1728409866868,42.17809,142.58,142.57,0.8437887]
[1728409874293,27.13909,142.58,142.57,0.8437887]
[1728409882071,34.42038708,142.58,142.57,0.8437887]
[1728409885181,7.0136,142.58,142.57,0.8437887]
[1728409885503,7.0132,142.59,142.57,0.8437887]
[1728409886577,1.75361647,142.6,142.57,0.8437887]
[1728409886776,28.76546361,142.61,142.57,0.8437887]
[1728409887173,7.0127,142.6,142.57,0.8437887]
[1728409887867,20.0,142.61,142.58,21.66709796]
[1728409888102,8.76447882,142.63,142.59,20.2639749]
[1728409888268,7.0117,142.62,142.59,13.2509749]
[1728409888576,1.75293743,142.64,142.58,13.2509749]
[1728409888926,8.76373743,142.64,142.59,24.5451]
[1728409889072,8.76373743,142.64,142.6,7.0125]
[1728409889394,7.0108,142.64,142.61,1.40225391]
[1728409889868,7.0108,142.64,142.6,20.2634749]
[1728409890066,7.0111,142.63,142.59,24.5452]
[1728409890997,8.76331739,142.65,142.61,7.0117]
[1728409891295,7.0105,142.65,142.61,7.0117]
[1728409892575,7.0099,142.66,142.62,20.2624749]